[Event "3rd BSSZ-Aranytiz GM 2019"]
[Site "Budapest"]
[Date "2019.08.24"]
[Round "8.4"]
[White "Horvath, Adam"]
[Black "Kozak, Adam"]
[Result "1/2-1/2"]
[ECO "C65"]
[WhiteElo "2517"]
[BlackElo "2495"]
[Annotator "ChessBase"]
[PlyCount "174"]
[EventDate "2019.08.16"]
[EventType "tourn"]
[EventCountry "HUN"]
[SourceTitle "playchess.com"]
[Source "ChessBase"]
[SourceQuality "1"]
[TimeControl "40/5400+30:1800+30"]

1. e4 {[%emt 0:07:44]} e5 {[%emt 0:00:15]} 2. Nf3 {[%emt 0:00:09]} Nc6 {[%emt 0:00:06]} 3. Bb5 {[%emt 0:00:40]} Nf6 {[%emt 0:00:09]} 4. d3 {[%emt 0:00:34]} Bc5 {[%emt 0:00:08]} 5. c3 {[%emt 0:00:22]} O-O {[%emt 0:01:19]} 6. O-O {[%emt 0:00:38]} Re8 {[%emt 0:00:37]} 7. d4 {[%emt 0:00:28]} Bb6 {[%emt 0:18:05]} 8. d5 {[%emt 0:00:18]} Ne7 {[%emt 0:03:00]} 9. Nxe5 {[%emt 0:00:08]} Nxe4 {[%emt 0:07:22]} 10. Qf3 {[%emt 0:00:14]} Nf6 {[%emt 0:00:44]} 11. d6 {[%emt 0:00:08]} cxd6 {[%emt 0:02:04]} 12. Nc4 {[%emt 0:00:05]} Bc7 {[%emt 0:08:25]} 13. Bg5 {[%emt 0:19:43]} Ng6 {[%emt 0:00:15]} 14. Ne3 {[%emt 0:07:31]} Re5 {[%emt 0:02:48]} 15. Bxf6 {[%emt 0:03:18]} Qxf6 {[%emt 0:00:07]} 16. Qxf6 {[%emt 0:00:11]} gxf6 {[%emt 0:00:06]} 17. a4 {[%emt 0:05:07]} b6 {[%emt 0:07:09]} 18. Ng4 {[%emt 0:17:38]} Re6 {[%emt 0:00:47]} 19. Nd2 {[%emt 0:06:54]} Kg7 {[%emt 0:03:38]} 20. Nb3 {[%emt 0:03:32]} a6 {[%emt 0:00:45]} 21. Bc4 {[%emt 0:00:32]} Bb7 {[%emt 0:00:39]} 22. Rfd1 {[%emt 0:06:38]} Nf4 {[%emt 0:17:57]} 23. Ne3 {[%emt 0:03:44]} Rae8 {[%emt 0:10:27]} 24. Nd4 {[%emt 0:00:22]} Kf8 {[%emt 0:03:45]} 25. Bf1 {[%emt 0:02:12]} Re5 {[%emt 0:04:42]} 26. g3 {[%emt 0:03:33]} Ne6 {[%emt 0:07:07]} 27. Bg2 {[%emt 0:02:00]} Bxg2 {[%emt 0:00:24]} 28. Kxg2 {[%emt 0:00:04]} h5 {[%emt 0:00:38]} 29. h4 {[%emt 0:02:36]} Nc5 {[%emt 0:00:26]} 30. b4 {[%emt 0:04:19]} Ne4 {[%emt 0:00:33]} 31. Ndf5 {[%emt 0:01:17]} R5e6 {[%emt 0:00:32]} 32. Nd5 {[%emt 0:00:32]} Bd8 {[%emt 0:00:07]} 33. f4 {[%emt 0:01:17]} Kg8 {[%emt 0:00:22]} 34. Rd3 {[%emt 0:01:22]} Kh7 {[%emt 0:00:02]} 35. Rad1 {[%emt 0:00:55]} Kg6 {[%emt 0:00:22]} 36. Nd4 {[%emt 0:00:16]} f5 {[%emt 0:00:01]} 37. Kf3 {[%emt 0:00:47]} Bf6 {[%emt 0:01:54]} 38. Nxe6 {[%emt 0:00:35]} dxe6 {[%emt 0:00:01]} 39. Nxb6 {[%emt 0:00:32]} Bxc3 {[%emt 0:00:49]} 40. Rxd6 {[%emt 0:00:00]} Nxd6 {[%emt 0:00:00]} 41. Rxd6 {[%emt 0:00:35]} Bxb4 {[%emt 0:00:30]} 42. Rc6 {[%emt 0:02:35]} a5 {[%emt 0:09:08]} 43. Nc4 {[%emt 0:01:25]} f6 {[%emt 0:01:08]} 44. Ke2 {[%emt 0:07:35]} Kf7 {[%emt 0:06:47]} 45. Rb6 {[%emt 0:03:33]} Rd8 {[%emt 0:00:59]} 46. Rb7+ {[%emt 0:03:31]} Kg6 {[%emt 0:00:51]} 47. Rb5 {[%emt 0:00:32]} Ra8 {[%emt 0:01:52]} 48. Nb2 {[%emt 0:07:59]} Rc8 {[%emt 0:01:22]} 49. Nd3 {[%emt 0:00:04]} Rc2+ {[%emt 0:01:15]} 50. Kf3 {[%emt 0:00:41]} Rc3 {[%emt 0:05:00]} 51. Ke2 {[%emt 0:00:04]} Rc2+ {[%emt 0:00:03]} 52. Kf3 {[%emt 0:00:04]} Bd2 {[%emt 0:00:24]} 53. Rb6 {[%emt 0:00:27]} Kf7 {[%emt 0:03:01]} 54. Rb7+ {[%emt 0:00:35]} Kg6 {[%emt 0:02:30]} 55. Rb6 {[%emt 0:00:14]} Rc4 {[%emt 0:00:42]} 56. Rxe6 {[%emt 0:00:37]} Rxa4 {[%emt 0:00:02]} 57. Ra6 {[%emt 0:04:33]} Ra3 {[%emt 0:03:18]} 58. Ke2 {[%emt 0:00:05]} Ra2 {[%emt 0:00:05]} 59. Ne5+ {[%emt 0:02:32]} Kg7 {[%emt 0:00:12]} 60. Ra7+ {[%emt 0:00:04]} Kg8 {[%emt 0:00:17]} 61. Ra8+ {[%emt 0:00:04]} Kg7 {[%emt 0:00:07]} 62. Ra7+ {[%emt 0:00:05]} Kf8 {[%emt 0:01:15]} 63. Nd7+ {[%emt 0:02:04]} Ke7 {[%emt 0:00:03]} 64. Kd3 {[%emt 0:01:52]} Bb4 {[%emt 0:01:18]} 65. Ne5+ {[%emt 0:00:48]} Ke6 {[%emt 0:00:10]} 66. Nc4 {[%emt 0:00:30]} Rg2 {[%emt 0:00:44]} 67. Kd4 {[%emt 0:00:52]} Rxg3 {[%emt 0:00:33]} 68. Ra6+ {[%emt 0:00:14]} Kf7 {[%emt 0:00:15]} 69. Ra7+ {[%emt 0:00:20]} Kg6 {[%emt 0:00:15]} 70. Ra6 {[%emt 0:00:03]} Bc3+ {[%emt 0:00:31]} 71. Kc5 {[%emt 0:00:43]} Kg7 {[%emt 0:00:35]} 72. Ra7+ {[%emt 0:00:17]} Kh6 {[%emt 0:00:23]} 73. Kd5 {[%emt 0:00:35]} Kg6 {[%emt 0:01:01]} 74. Ra8 {[%emt 0:00:45]} Rg4 {[%emt 0:01:01]} 75. Ke6 {[%emt 0:00:40]} Rxf4 {[%emt 0:00:38]} 76. Nd6 {[%emt 0:00:06]} Bb4 {[%emt 0:00:31]} 77. Rg8+ {[%emt 0:00:54]} Kh7 {[%emt 0:00:11]} 78. Ra8 {[%emt 0:00:51]} Bxd6 {[%emt 0:00:11]} 79. Kxd6 {[%emt 0:00:04]} a4 {[%emt 0:00:10]} 80. Ke7 {[%emt 0:00:21]} Kg7 {[%emt 0:00:07]} 81. Ke6 {[%emt 0:00:04]} a3 {[%emt 0:01:16]} 82. Rxa3 {[%emt 0:00:29]} Kg6 {[%emt 0:00:01]} 83. Ra8 {[%emt 0:00:09]} Re4+ {[%emt 0:00:01]} 84. Kd5 {[%emt 0:00:05]} Rxh4 {[%emt 0:00:11]} 85. Rg8+ {[%emt 0:00:05]} Kf7 {[%emt 0:00:04]} 86. Ra8 {[%emt 0:00:31]} Re4 {[%emt 0:00:13]} 87. Rb8 {[%emt 0:00:23]} h4 {[%emt 0:00:05]} 1/2-1/2

[Event "3rd BSSZ-Aranytiz GM 2019"]
[Site "Budapest"]
[Date "2019.08.24"]
[Round "8.5"]
[White "Horvath, Dominik"]
[Black "Aczel, Gergely"]
[Result "1-0"]
[ECO "A13"]
[WhiteElo "2425"]
[BlackElo "2538"]
[Annotator "ChessBase"]
[PlyCount "185"]
[EventDate "2019.08.16"]
[EventType "tourn"]
[EventCountry "HUN"]
[SourceTitle "playchess.com"]
[Source "ChessBase"]
[SourceQuality "1"]
[TimeControl "40/5400+30:1800+30"]

1. c4 e6 {[%emt 0:10:11]} 2. g3 {[%emt 0:00:15]} d5 {[%emt 0:00:21]} 3. Bg2 {[%emt 0:00:05]} Nf6 {[%emt 0:00:06]} 4. d4 {[%emt 0:00:05]} Nbd7 {[%emt 0:00:14]} 5. Nf3 {[%emt 0:00:21]} dxc4 {[%emt 0:00:07]} 6. O-O {[%emt 0:01:18]} c6 {[%emt 0:00:03]} 7. a4 {[%emt 0:01:13]} a5 {[%emt 0:00:04]} 8. Qc2 {[%emt 0:07:42]} Nd5 {[%emt 0:02:10]} 9. Qxc4 {[%emt 0:04:12]} Nb4 {[%emt 0:00:08]} 10. Nc3 {[%emt 0:03:07]} b6 {[%emt 0:01:18]} 11. Rd1 {[%emt 0:00:59]} Be7 {[%emt 0:00:45]} 12. e4 {[%emt 0:04:43]} Ba6 {[%emt 0:00:20]} 13. Qb3 {[%emt 0:00:03]} O-O {[%emt 0:00:13]} 14. Be3 {[%emt 0:02:10]} c5 {[%emt 0:35:48]} 15. dxc5 {[%emt 0:04:23]} bxc5 {[%emt 0:17:28]} 16. Bf1 {[%emt 0:05:22]} Bxf1 {[%emt 0:01:06]} 17. Kxf1 {[%emt 0:00:06]} Qc8 {[%emt 0:01:13]} 18. Nd2 {[%emt 0:06:26]} Ne5 {[%emt 0:00:27]} 19. Nc4 {[%emt 0:01:18]} Nxc4 {[%emt 0:02:54]} 20. Qxc4 {[%emt 0:00:08]} Nc2 {[%emt 0:00:29]} 21. Rac1 {[%emt 0:00:33]} Nxe3+ {[%emt 0:00:09]} 22. fxe3 {[%emt 0:00:02]} Qb8 {[%emt 0:09:20]} 23. Nb5 {[%emt 0:03:41]} Qe5 {[%emt 0:00:29]} 24. b3 {[%emt 0:03:40]} Rfd8 {[%emt 0:01:08]} 25. Qc2 {[%emt 0:03:04]} Bg5 {[%emt 0:06:39]} 26. Ke2 {[%emt 0:02:10]} Bh6 {[%emt 0:02:37]} 27. Rxd8+ {[%emt 0:01:15]} Rxd8 {[%emt 0:00:01]} 28. Rd1 {[%emt 0:00:07]} Rf8 {[%emt 0:02:51]} 29. Nd6 {[%emt 0:08:50]} Qh5+ {[%emt 0:00:20]} 30. Ke1 {[%emt 0:00:03]} Bxe3 {[%emt 0:00:50]} 31. Qe2 {[%emt 0:00:18]} Qh6 {[%emt 0:02:12]} 32. Kf1 {[%emt 0:04:01]} Qh3+ {[%emt 0:00:16]} 33. Qg2 {[%emt 0:00:04]} Qg4 {[%emt 0:00:42]} 34. Qe2 {[%emt 0:00:10]} Qh3+ {[%emt 0:01:20]} 35. Qg2 {[%emt 0:00:04]} Qh6 {[%emt 0:00:40]} 36. Qe2 {[%emt 0:04:22]} Bd4 {[%emt 0:00:02]} 37. Kg2 {[%emt 0:00:11]} Qg6 {[%emt 0:00:17]} 38. Rf1 {[%emt 0:03:23]} h5 {[%emt 0:00:35]} 39. Nc4 {[%emt 0:02:09]} Ra8 {[%emt 0:01:02]} 40. Nd6 {[%emt 0:00:00]} Rf8 {[%emt 0:00:00]} 41. Nc4 {[%emt 0:00:15]} Ra8 {[%emt 0:13:26]} 42. Nd6 {[%emt 0:00:06]} Rb8 {[%emt 0:00:34]} 43. Rf3 {[%emt 0:01:24]} Rd8 {[%emt 0:16:01]} 44. Nxf7 {[%emt 0:02:00]} Rf8 {[%emt 0:01:18]} 45. Nd6 {[%emt 0:01:33]} Rxf3 {[%emt 0:00:06]} 46. Qxf3 {[%emt 0:00:56]} Be5 {[%emt 0:00:58]} 47. Nb7 {[%emt 0:03:11]} Qg5 {[%emt 0:00:30]} 48. Nxc5 {[%emt 0:05:05]} h4 {[%emt 0:00:03]} 49. Qf8+ {[%emt 0:08:20]} Kh7 {[%emt 0:00:03]} 50. Nxe6 {[%emt 0:00:15]} h3+ {[%emt 0:00:10]} 51. Kf3 {[%emt 0:00:05]} Qh5+ {[%emt 0:04:17]} 52. Kf2 {[%emt 0:06:41]} Bf6 {[%emt 0:00:35]} 53. Qd6 {[%emt 0:02:52]} Qf7 {[%emt 0:00:39]} 54. Ke3 {[%emt 0:02:11]} Qb7 {[%emt 0:00:40]} 55. Qd5 {[%emt 0:01:32]} Qb6+ {[%emt 0:00:01]} 56. Kf3 {[%emt 0:00:30]} Qg1 {[%emt 0:00:20]} 57. Qh5+ {[%emt 0:00:19]} Kg8 {[%emt 0:00:01]} 58. Qe8+ {[%emt 0:02:35]} Kh7 {[%emt 0:00:01]} 59. Nf8+ {[%emt 0:00:21]} Kg8 {[%emt 0:00:08]} 60. Nd7+ {[%emt 0:00:10]} Kh7 {[%emt 0:00:14]} 61. Nxf6+ {[%emt 0:00:49]} gxf6 {[%emt 0:00:02]} 62. Qf7+ {[%emt 0:00:06]} Kh8 {[%emt 0:00:07]} 63. Qxf6+ {[%emt 0:00:03]} Kg8 {[%emt 0:00:24]} 64. Qd8+ {[%emt 0:01:01]} Kg7 {[%emt 0:00:29]} 65. Qd2 {[%emt 0:01:57]} Qh1+ {[%emt 0:01:49]} 66. Ke3 {[%emt 0:00:06]} Qg1+ {[%emt 0:00:21]} 67. Qf2 {[%emt 0:00:39]} Qb1 {[%emt 0:00:34]} 68. Kf4 {[%emt 0:00:39]} Qxb3 {[%emt 0:01:17]} 69. Qa7+ {[%emt 0:00:07]} Kg6 {[%emt 0:00:56]} 70. Qxa5 {[%emt 0:00:21]} Qc2 {[%emt 0:00:23]} 71. Qf5+ {[%emt 0:03:06]} Kg7 {[%emt 0:00:02]} 72. Qd7+ {[%emt 0:01:02]} Kg6 {[%emt 0:00:13]} 73. Qf5+ {[%emt 0:02:43]} Kg7 {[%emt 0:00:01]} 74. Qg4+ {[%emt 0:03:43]} Kf7 {[%emt 0:00:09]} 75. Qh5+ {[%emt 0:00:07]} Kg7 {[%emt 0:00:09]} 76. Kg4 {[%emt 0:01:16]} Qxh2 {[%emt 0:00:22]} 77. Qxh3 {[%emt 0:00:07]} Qc2 {[%emt 0:02:05]} 78. Kh5 {[%emt 0:01:38]} Qxa4 {[%emt 0:00:17]} 79. Qg4+ {[%emt 0:00:25]} Kh8 {[%emt 0:00:55]} 80. Qe6 {[%emt 0:01:11]} Qd4 {[%emt 0:01:09]} 81. e5 {[%emt 0:01:10]} Qd1+ {[%emt 0:00:24]} 82. Qg4 {[%emt 0:01:09]} Qd5 {[%emt 0:00:39]} 83. Qf5 {[%emt 0:01:37]} Kg7 {[%emt 0:00:49]} 84. Qf6+ {[%emt 0:00:44]} Kh7 {[%emt 0:00:06]} 85. Qe7+ {[%emt 0:00:27]} Kh8 {[%emt 0:00:06]} 86. Qf6+ {[%emt 0:01:21]} Kh7 {[%emt 0:00:09]} 87. g4 {[%emt 0:00:47]} Qh1+ {[%emt 0:00:13]} 88. Kg5 {[%emt 0:00:11]} Qc1+ {[%emt 0:00:41]} 89. Qf4 {[%emt 0:00:06]} Qc5 {[%emt 0:00:24]} 90. Qf7+ {[%emt 0:00:10]} Kh8 {[%emt 0:00:01]} 91. Kg6 {[%emt 0:00:59]} Qc2+ {[%emt 0:00:47]} 92. Qf5 {[%emt 0:00:03]} Qc6+ {[%emt 0:00:41]} 93. Qf6+ {[%emt 0:00:04]} 1-0

[Event "3rd BSSZ-Aranytiz GM 2019"]
[Site "Budapest"]
[Date "2019.08.25"]
[Round "9.1"]
[White "Aczel, Gergely"]
[Black "Martinovici, Ilie"]
[Result "1/2-1/2"]
[ECO "D35"]
[WhiteElo "2538"]
[BlackElo "2405"]
[Annotator "ChessBase"]
[PlyCount "119"]
[EventDate "2019.08.16"]
[EventType "tourn"]
[EventCountry "HUN"]
[SourceTitle "playchess.com"]
[Source "ChessBase"]
[SourceQuality "1"]
[TimeControl "40/5400+30:1800+30"]

1. d4 {[%emt 0:00:00]} Nf6 {[%emt 0:00:11]} 2. c4 {[%emt 0:00:28]} e6 {[%emt 0:00:30]} 3. Nc3 {[%emt 0:00:30]} d5 {[%emt 0:00:30]} 4. cxd5 {[%emt 0:00:30]} exd5 {[%emt 0:00:30]} 5. Bg5 {[%emt 0:00:30]} Be7 {[%emt 0:00:00]} 6. e3 {[%emt 0:00:00]} c6 {[%emt 0:00:00]} 7. Bd3 {[%emt 0:00:00]} O-O {[%emt 0:00:00]} 8. h3 {[%emt 0:00:00]} Nbd7 9. Qc2 {[%emt 0:00:00]} Re8 {[%emt 0:00:00]} 10. Nf3 {[%emt 0:00:00]} Nf8 {[%emt 0:00:00]} 11. O-O {[%emt 0:00:00]} g6 12. Bh6 {[%emt 0:00:06]} Ne6 {[%emt 0:00:00]} 13. Ne5 {[%emt 0:00:09]} Ng7 {[%emt 0:00:00]} 14. g4 {[%emt 0:01:35]} c5 {[%emt 0:01:54]} 15. Bb5 {[%emt 0:02:04]} Rf8 {[%emt 0:01:41]} 16. dxc5 {[%emt 0:00:30]} Bxc5 {[%emt 0:00:30]} 17. Rad1 {[%emt 0:07:44]} Bd6 {[%emt 0:00:47]} 18. Bf4 {[%emt 0:00:39]} Qc7 {[%emt 0:00:38]} 19. Nd3 {[%emt 0:00:30]} a6 {[%emt 0:00:30]} 20. Ba4 {[%emt 0:01:02]} Ne6 {[%emt 0:07:29]} 21. Ne2 {[%emt 0:07:12]} Nxf4 {[%emt 0:00:30]} 22. Ndxf4 {[%emt 0:00:30]} Qe7 {[%emt 0:00:30]} 23. Bb3 {[%emt 0:00:30]} Be6 {[%emt 0:10:09]} 24. Bxd5 {[%emt 0:34:18]} Nxd5 {[%emt 0:00:30]} 25. Nxd5 Qh4 {[%emt 0:01:08]} 26. Nf6+ {[%emt 0:09:53]} Qxf6 {[%emt 0:02:31]} 27. Rxd6 {[%emt 0:05:54]} Rac8 {[%emt 0:02:56]} 28. Qb1 {[%emt 0:04:19]} Qg5 {[%emt 0:04:45]} 29. Nf4 {[%emt 0:00:50]} Bc4 {[%emt 0:00:48]} 30. Rfd1 {[%emt 0:04:54]} f5 {[%emt 0:06:06]} 31. b3 {[%emt 0:00:44]} Bf7 {[%emt 0:00:30]} 32. f3 {[%emt 0:05:30]} Rfe8 {[%emt 0:01:54]} 33. Qd3 {[%emt 0:04:01]} h5 {[%emt 0:09:53]} 34. Kh2 {[%emt 0:00:04]} hxg4 {[%emt 0:00:56]} 35. fxg4 {[%emt 0:00:30]} fxg4 {[%emt 0:00:30]} 36. Rg1 {[%emt 0:00:30]} Qf5 {[%emt 0:00:30]} 37. Rxg4 {[%emt 0:00:30]} Rc2+ {[%emt 0:00:30]} 38. Kg3 {[%emt 0:00:30]} Qxd3 {[%emt 0:00:30]} 39. Rxd3 {[%emt 0:00:30]} Rxa2 {[%emt 0:00:30]} 40. Nxg6 {[%emt 0:00:30]} Be6 {[%emt 0:00:30]} 41. Rg5 {[%emt 0:30:30]} Rb2 {[%emt 0:25:41]} 42. Nf4+ {[%emt 0:00:00]} Kf7 {[%emt 0:00:14]} 43. Nxe6 {[%emt 0:00:00]} Rxe6 {[%emt 0:00:44]} 44. Rf5+ {[%emt 0:00:00]} Kg6 {[%emt 0:01:09]} 45. Rf3 a5 {[%emt 0:00:09]} 46. h4 {[%emt 0:00:09]} b5 47. h5+ {[%emt 0:02:06]} Kh6 {[%emt 0:00:45]} 48. Rf5 {[%emt 0:00:11]} Rb6 {[%emt 0:02:23]} 49. Kf4 {[%emt 0:05:12]} a4 {[%emt 0:02:17]} 50. bxa4 {[%emt 0:00:07]} bxa4 {[%emt 0:00:15]} 51. Ra5 R2b5 {[%emt 0:02:07]} 52. Rxa4 {[%emt 0:03:24]} Rxh5 {[%emt 0:01:25]} 53. Rdd4 {[%emt 0:03:54]} Kg6 54. Ra8 Rf6+ {[%emt 0:04:14]} 55. Ke4 {[%emt 0:00:39]} Re6+ {[%emt 0:00:00]} 56. Kd3 {[%emt 0:00:22]} Rh3 {[%emt 0:00:36]} 57. Rg4+ Kf6 58. Rf4+ {[%emt 0:00:59]} Kg7 {[%emt 0:01:17]} 59. Ra7+ {[%emt 0:00:28]} Kg6 60. Re4 1/2-1/2

[Event "3rd BSSZ-Aranytiz GM 2019"]
[Site "Budapest"]
[Date "2019.08.25"]
[Round "9.3"]
[White "Secheres, Adrian-Simion"]
[Black "Horvath, Adam"]
[Result "1-0"]
[ECO "E38"]
[WhiteElo "2394"]
[BlackElo "2517"]
[Annotator "ChessBase"]
[PlyCount "99"]
[EventDate "2019.08.16"]
[EventType "tourn"]
[EventCountry "HUN"]
[SourceTitle "playchess.com"]
[Source "ChessBase"]
[SourceQuality "1"]
[TimeControl "40/5400+30:1800+30"]

1. d4 {[%emt 0:04:51]} Nf6 {[%emt 0:01:27]} 2. c4 {[%emt 0:00:30]} e6 {[%emt 0:00:07]} 3. Nc3 {[%emt 0:00:00]} Bb4 {[%emt 0:00:10]} 4. Qc2 {[%emt 0:00:18]} c5 {[%emt 0:01:01]} 5. dxc5 {[%emt 0:00:12]} Bxc5 {[%emt 0:00:55]} 6. Nf3 {[%emt 0:00:10]} a6 {[%emt 0:07:50]} 7. e3 {[%emt 0:04:48]} b6 {[%emt 0:00:30]} 8. Be2 {[%emt 0:00:30]} Bb7 {[%emt 0:00:30]} 9. b3 {[%emt 0:00:30]} Be7 {[%emt 0:00:30]} 10. Bb2 {[%emt 0:00:30]} d6 {[%emt 0:07:55]} 11. O-O {[%emt 0:10:59]} Nbd7 {[%emt 0:00:26]} 12. Rfd1 {[%emt 0:02:37]} Rc8 {[%emt 0:00:35]} 13. Rac1 {[%emt 0:03:21]} Qc7 {[%emt 0:01:12]} 14. Ba3 {[%emt 0:18:29]} O-O {[%emt 0:01:52]} 15. Qd2 {[%emt 0:02:06]} Nc5 {[%emt 0:17:36]} 16. Qe1 {[%emt 0:04:21]} Rfd8 {[%emt 0:07:48]} 17. Bb2 {[%emt 0:06:57]} Qb8 {[%emt 0:00:30]} 18. Nd4 {[%emt 0:03:06]} Rc7 {[%emt 0:16:17]} 19. Bf1 {[%emt 0:02:00]} Re8 {[%emt 0:07:20]} 20. Rc2 {[%emt 0:13:40]} Qa8 {[%emt 0:01:09]} 21. f3 {[%emt 0:00:30]} Ncd7 {[%emt 0:03:28]} 22. Qf2 {[%emt 0:02:27]} Rcc8 {[%emt 0:00:30]} 23. Rcd2 {[%emt 0:01:02]} Qb8 {[%emt 0:00:30]} 24. Qg3 {[%emt 0:00:30]} Ne5 {[%emt 0:06:01]} 25. Nde2 {[%emt 0:06:01]} Ba8 {[%emt 0:07:49]} 26. a4 {[%emt 0:01:48]} Ned7 {[%emt 0:05:33]} 27. Nd4 {[%emt 0:01:54]} Qa7 {[%emt 0:01:32]} 28. Bd3 {[%emt 0:01:25]} Bf8 {[%emt 0:01:30]} 29. Bc2 {[%emt 0:00:30]} Ne5 {[%emt 0:00:11]} 30. Kh1 {[%emt 0:03:37]} Ng6 {[%emt 0:01:07]} 31. Qh3 {[%emt 0:00:30]} Qb8 {[%emt 0:00:55]} 32. Nde2 {[%emt 0:01:24]} d5 {[%emt 0:00:30]} 33. cxd5 {[%emt 0:00:30]} Nxd5 {[%emt 0:00:11]} 34. Nxd5 {[%emt 0:02:39]} Bxd5 {[%emt 0:00:37]} 35. Nd4 {[%emt 0:01:05]} e5 {[%emt 0:00:44]} 36. e4 {[%emt 0:00:30]} Bb4 {[%emt 0:00:25]} 37. Rf2 {[%emt 0:00:59]} Nf4 {[%emt 0:00:30]} 38. Qg4 {[%emt 0:00:30]} h5 {[%emt 0:00:30]} 39. Qg3 {[%emt 0:00:30]} exd4 {[%emt 0:00:30]} 40. exd5 {[%emt 0:00:30]} Be1 {[%emt 0:00:00]} 41. Bxd4 {[%emt 0:02:44]} g6 {[%emt 0:06:29]} 42. Be4 {[%emt 0:00:14]} Bxf2 {[%emt 0:01:08]} 43. Qxf2 {[%emt 0:03:31]} f5 {[%emt 0:00:06]} 44. Bxf5 {[%emt 0:02:57]} Re2 {[%emt 0:02:31]} 45. Be6+ {[%emt 0:01:13]} Kh7 {[%emt 0:19:27]} 46. Qh4 Nxe6 {[%emt 0:00:03]} 47. Qe7+ {[%emt 0:01:24]} Kh6 {[%emt 0:00:03]} 48. dxe6 {[%emt 0:03:36]} Rc7 {[%emt 0:01:09]} 49. Qf6 {[%emt 0:01:31]} Qc8 50. Be5 1-0

[Event "3rd BSSZ-Aranytiz GM 2019"]
[Site "Budapest"]
[Date "2019.08.25"]
[Round "9.4"]
[White "Polyik, Peter"]
[Black "Csonka, Balazs"]
[Result "0-1"]
[ECO "D02"]
[WhiteElo "2328"]
[BlackElo "2472"]
[Annotator "ChessBase"]
[PlyCount "72"]
[EventDate "2019.08.16"]
[EventType "tourn"]
[EventCountry "HUN"]
[SourceTitle "playchess.com"]
[Source "ChessBase"]
[SourceQuality "1"]
[TimeControl "40/5400+30:1800+30"]

1. d4 {[%emt 0:01:04]} Nf6 {[%emt 0:00:07]} 2. Nf3 {[%emt 0:00:06]} d5 {[%emt 0:00:34]} 3. Bf4 {[%emt 0:00:05]} c5 {[%emt 0:00:17]} 4. e3 {[%emt 0:00:04]} Nc6 {[%emt 0:00:04]} 5. Nbd2 {[%emt 0:00:05]} e6 {[%emt 0:00:48]} 6. c3 {[%emt 0:00:06]} Bd6 {[%emt 0:00:17]} 7. Bg3 {[%emt 0:00:06]} O-O {[%emt 0:00:11]} 8. Bd3 {[%emt 0:00:09]} b6 {[%emt 0:00:31]} 9. Qe2 {[%emt 0:05:40]} Bb7 {[%emt 0:00:15]} 10. Rd1 {[%emt 0:00:06]} h6 {[%emt 0:00:13]} 11. e4 {[%emt 0:06:51]} Bxg3 {[%emt 0:02:30]} 12. hxg3 {[%emt 0:00:13]} cxd4 {[%emt 0:03:13]} 13. cxd4 {[%emt 0:06:39]} Nb4 {[%emt 0:19:12]} 14. e5 {[%emt 0:07:17]} Nxd3+ {[%emt 0:00:47]} 15. Qxd3 {[%emt 0:00:05]} Ne4 {[%emt 0:00:07]} 16. Qe3 {[%emt 0:05:56]} Rc8 {[%emt 0:13:33]} 17. Rxh6 {[%emt 0:25:54]} gxh6 {[%emt 0:09:08]} 18. Qxh6 {[%emt 0:00:06]} Qe7 {[%emt 0:00:07]} 19. Nxe4 {[%emt 0:00:08]} dxe4 {[%emt 0:00:07]} 20. Ng5 {[%emt 0:00:06]} f6 {[%emt 0:00:07]} 21. Qg6+ {[%emt 0:00:25]} Qg7 {[%emt 0:00:07]} 22. Qxg7+ {[%emt 0:00:05]} Kxg7 {[%emt 0:00:04]} 23. Nxe6+ {[%emt 0:00:05]} Kf7 {[%emt 0:00:23]} 24. Nxf8 {[%emt 0:00:06]} Kxf8 {[%emt 0:00:15]} 25. exf6 {[%emt 0:02:10]} Bd5 {[%emt 0:04:42]} 26. Kd2 {[%emt 0:09:14]} Kf7 {[%emt 0:00:08]} 27. Rh1 {[%emt 0:01:09]} Kxf6 {[%emt 0:17:58]} 28. b3 {[%emt 0:03:48]} Kg6 {[%emt 0:02:54]} 29. Rc1 {[%emt 0:03:45]} Rxc1 {[%emt 0:08:23]} 30. Kxc1 {[%emt 0:00:05]} b5 {[%emt 0:00:08]} 31. Kd2 {[%emt 0:01:02]} b4 {[%emt 0:00:08]} 32. Ke3 {[%emt 0:01:04]} a5 {[%emt 0:00:35]} 33. f3 {[%emt 0:00:18]} Bxb3 {[%emt 0:01:16]} 34. fxe4 {[%emt 0:01:23]} Bxa2 {[%emt 0:00:16]} 35. Kd2 {[%emt 0:00:08]} a4 {[%emt 0:00:21]} 36. Kc2 {[%emt 0:00:09]} a3 0-1